bitfinex/quotes_ETHUSD_20230118
["timestamp","ask_amount","ask_price","bid_price","bid_amount"]
[1674056364165,0.491,1579.8,1579.6,14.57242]
[1674056364380,0.491,1579.8,1579.7,0.63674173]
[1674056364622,0.491,1579.8,1579.7,12.66062]
[1674056364833,0.491,1579.8,1579.7,13.66062]
[1674056365249,0.5718,1580.5,1579.8,1.0]
[1674056365463,0.002,1580.7,1580.0,18.98721]
[1674056365464,1.4767,1580.7,1580.0,18.98721]
[1674056366068,0.4767,1580.7,1580.0,18.98721]
[1674056366280,0.002,1580.7,1580.0,18.98721]
[1674056366686,1.002,1580.7,1580.0,18.98721]
[1674056367005,13.65766,1580.7,1579.9,6.39344]
[1674056367220,0.4747,1580.6,1579.9,12.65888]
[1674056367464,5.20146881,1580.7,1579.9,12.65888]
[1674056367630,0.0143679,1580.4,1579.9,12.65888]
[1674056367846,0.0143679,1580.4,1579.9,6.32944]
[1674056368104,0.0143679,1580.4,1579.9,12.65895]
[1674056368426,0.0143679,1580.4,1579.9,14.56995]
[1674056368799,0.0143679,1580.4,1580.0,1.0]
[1674056369030,0.0143679,1580.4,1580.1,18.98589]
[1674056369748,0.0143679,1580.4,1580.1,12.65726]
[1674056369945,0.0143679,1580.4,1580.1,6.32863]
[1674056370677,1.0143679,1580.4,1580.0,0.066]
[1674056370893,6.3419779,1580.4,1579.9,6.32949]
[1674056371100,0.1113679,1580.4,1579.9,12.659]
[1674056371363,0.0173679,1580.4,1579.9,12.659]
[1674056371522,0.0143679,1580.4,1579.9,12.659]
[1674056371938,6.3418879,1580.4,1579.9,12.659]
[1674056372154,0.1113679,1580.4,1579.9,12.659]
[1674056372359,0.4891679,1580.4,1579.9,12.659]
[1674056372894,0.0173679,1580.4,1579.9,12.659]
[1674056373157,0.0143679,1580.4,1579.9,18.98851]
[1674056373737,0.0143679,1580.4,1580.0,1.0]
[1674056373911,0.0143679,1580.4,1579.9,6.39549]
[1674056374080,0.0143679,1580.4,1580.1,12.65726]
[1674056374268,0.0143679,1580.4,1580.1,18.98597]
[1674056375487,0.0143679,1580.4,1580.1,18.98605]
[1674056377667,0.0143679,1580.4,1580.3,18.98373]
[1674056379531,0.0143679,1580.4,1580.3,12.65582]
[1674056379734,0.0143679,1580.4,1580.3,18.98373]
[1674056382789,0.5393679,1580.4,1580.3,5.15580472]
[1674056383569,0.5393679,1580.4,1580.3,11.48371472]
[1674056383994,0.0143679,1580.4,1580.3,17.81162472]
[1674056384164,0.0143679,1580.4,1580.3,18.81162472]
[1674056384376,0.0143679,1580.4,1580.3,17.81162472]
[1674056385784,0.0143679,1580.4,1580.3,18.81162472]
[1674056385933,0.002,1580.7,1580.4,1.0]
[1674056386146,0.002,1580.7,1580.5,1.911]
[1674056386358,0.002,1580.7,1580.6,25.30684]
[1674056386832,0.002,1580.7,1580.6,18.98013]
[1674056386994,0.527,1580.7,1580.6,18.98013]
[1674056387624,0.527,1580.7,1580.6,6.32671]
[1674056387850,0.527,1580.7,1580.5,0.066]
[1674056388060,0.65886251,1580.6,1580.2,5.67492818]
[1674056388289,8.08448817,1580.6,1580.2,5.67692818]
[1674056388500,0.75586251,1580.6,1580.2,18.33354818]
[1674056388721,1.74615628,1580.7,1580.2,18.33354818]
[1674056388948,0.002,1580.7,1580.2,18.33354818]
[1674056389931,0.66086251,1580.7,1580.2,18.33354818]
[1674056390245,1.64915628,1580.7,1580.2,18.33354818]
[1674056390495,1.65886251,1580.6,1580.2,18.33354818]
[1674056390721,1.65886251,1580.6,1580.2,12.00523818]
[1674056391037,1.0,1580.5,1580.2,5.67692818]
[1674056391194,1.0,1580.5,1580.2,0.002]
[1674056391398,4.22096649,1580.5,1580.0,12.72384]
[1674056391611,3.12195628,1580.5,1580.0,12.65784]
[1674056391860,1.13366251,1580.5,1580.0,12.65784]
[1674056392051,0.65886251,1580.5,1580.0,12.65784]
[1674056392405,1.7578305,1580.5,1580.0,12.65784]
[1674056392712,2.7578305,1580.5,1580.0,12.65784]
[1674056392922,1.65886251,1580.5,1580.0,12.65784]
[1674056393304,0.65886251,1580.5,1580.0,12.65784]
[1674056393512,4.20802061,1580.6,1580.0,12.65784]
[1674056393513,2.21885628,1580.6,1580.0,12.65784]
[1674056393758,1.13356251,1580.6,1580.0,12.65784]
[1674056393919,20.15796251,1580.7,1580.0,12.65784]
[1674056394506,20.15796251,1580.7,1580.0,13.29458173]
[1674056394507,19.68326251,1580.7,1580.0,13.29458173]
[1674056394812,0.4747,1580.6,1580.0,13.29458173]
[1674056395126,20.67155628,1580.7,1580.0,13.29458173]
[1674056395127,19.68326251,1580.7,1580.0,13.29458173]
[1674056395337,19.68326251,1580.7,1580.0,12.65784]
[1674056395563,19.68326251,1580.7,1580.2,18.98397]
[1674056395709,19.0244,1580.7,1580.2,18.98397]
[1674056396775,0.099,1580.7,1580.2,18.98397]
[1674056397021,0.002,1580.7,1580.2,18.98397]
[1674056397550,0.002,1580.7,1580.3,1.0]
[1674056397765,0.002,1580.7,1580.4,25.30972]
[1674056400015,0.002,1580.7,1580.4,27.22072]
[1674056401542,0.002,1580.7,1580.6,25.30684]
[1674056402344,0.002,1580.7,1580.6,18.98013]
[1674056405989,0.0085351,1581.0,1580.7,1.0]
[1674056406292,0.0085351,1581.0,1580.8,25.30364]
[1674056406872,0.0085351,1581.0,1580.8,18.97773]
[1674056408653,0.0085351,1581.0,1580.7,12.71797]
[1674056408867,0.66739761,1581.0,1580.7,6.32591]
[1674056409185,2.76605468,1581.0,1580.7,6.32591]
[1674056409518,2.76605468,1581.0,1580.4,6.32718]
[1674056409519,1.10601826,1580.6,1580.4,6.32718]
[1674056409723,1.10601826,1580.6,1580.3,6.39359]
[1674056409955,1.10601826,1580.6,1580.4,6.32751]
[1674056410568,1.10601826,1580.6,1580.3,6.39359]
[1674056410904,1.10601826,1580.6,1580.4,6.32743]
[1674056411074,1.10601826,1580.6,1580.5,7.32711]
[1674056411281,1.10601826,1580.6,1580.5,13.65422]
[1674056413083,1.10601826,1580.6,1580.5,14.29096173]
[1674056414167,8.26e-06,1580.6,1580.5,20.61807173]
[1674056414381,0.0085351,1581.0,1580.5,28.4184483]
[1674056414694,0.0085351,1581.0,1580.8,25.30364]
[1674056415136,0.0085351,1581.0,1580.9,14.28776173]
[1674056415495,5.1e-06,1581.0,1580.9,14.28776173]
[1674056415737,0.0151673,1581.2,1580.9,16.19876173]
[1674056415923,7.3e-06,1581.2,1581.1,1.911]
[1674056416133,5.69e-06,1581.3,1581.2,1.0]
[1674056416378,5.69e-06,1581.3,1581.2,12.64862]
[1674056416567,5.69e-06,1581.3,1581.2,13.28536173]
[1674056417753,5.69e-06,1581.3,1581.2,14.15682577]
[1674056418119,0.65886251,1582.1,1581.3,1.0]
[1674056418332,0.02576895,1581.8,1581.3,2.896]
[1674056418591,0.02576895,1581.8,1581.4,25.92998173]
[1674056418958,0.02576895,1581.8,1581.4,25.29324]
[1674056419219,0.02576895,1581.8,1581.4,18.96993]
[1674056419950,1.74415628,1582.1,1581.4,18.71993]
[1674056420267,0.65886251,1582.1,1581.6,12.64478]
[1674056420484,1.75688173,1582.1,1581.6,18.96738]
[1674056420744,0.75586251,1582.2,1581.6,18.96738]
[1674056421050,1.64715628,1582.2,1581.6,18.96738]
[1674056421260,1.7568517,1582.2,1581.8,6.32171]
[1674056421475,0.65886251,1582.2,1581.8,6.32171]
[1674056421691,1.75678829,1582.2,1581.8,6.32171]
[1674056421841,0.68238789,1582.3,1581.8,12.64362]
[1674056422051,1.68238789,1582.3,1581.7,0.066]
[1674056422307,0.65886251,1582.2,1581.6,6.32231]
[1674056422524,0.65886251,1582.2,1581.6,12.64464]
[1674056422525,6.32038,1582.2,1581.6,12.64464]
[1674056422680,6.41738,1582.2,1581.6,18.96702]
[1674056423116,0.75586251,1582.2,1581.6,18.96702]
[1674056423332,0.65886251,1582.2,1581.6,18.96702]
[1674056423584,1.75683929,1582.2,1581.7,1.0]
[1674056423733,10.209675,1582.3,1581.8,6.32187]
[1674056423943,2.42727123,1582.3,1581.8,12.64378]
[1674056424266,10.73649867,1582.3,1581.8,18.96569]
[1674056424475,8.74726123,1582.3,1581.8,18.96569]
[1674056424720,2.42727123,1582.3,1581.8,18.96569]
[1674056424891,0.02352538,1582.3,1581.8,18.96569]
[1674056425579,0.02352538,1582.3,1581.7,8.28001]
[1674056425727,0.68238789,1582.3,1581.8,6.32188]
[1674056425941,0.68238789,1582.3,1581.8,6.27188]
[1674056426402,7.00241789,1582.3,1581.8,6.27188]
[1674056426675,7.00241789,1582.3,1581.8,18.9157]
[1674056426676,0.12052538,1582.3,1581.8,18.9157]
[1674056426934,0.02352538,1582.3,1581.8,19.30244173]
[1674056427254,0.02352538,1582.3,1581.9,2.893]
[1674056427492,0.02352538,1582.3,1582.0,12.64206]
[1674056427970,0.02352538,1582.3,1582.0,18.96317]
[1674056428188,0.02352538,1582.3,1582.0,18.30449579]
[1674056429007,0.02352538,1582.3,1582.1,1.0]
[1674056429199,0.02352538,1582.3,1582.2,12.64062]
[1674056429411,0.02352538,1582.3,1582.2,17.79004695]
[1674056430094,0.02352538,1582.3,1582.1,6.3867]
[1674056430249,0.02352538,1582.3,1582.1,18.9621]
[1674056430672,0.02352538,1582.3,1582.0,0.066]
[1674056430673,0.02352538,1582.3,1582.0,12.708]
[1674056430928,0.02352538,1582.3,1581.9,0.066]
[1674056431252,12.66336538,1582.3,1581.9,6.32149]
[1674056431415,12.76036538,1582.3,1581.9,6.32149]
[1674056431627,0.12052538,1582.3,1581.9,18.96451]
[1674056431857,0.02352538,1582.3,1581.9,18.96451]
[1674056432289,0.02352538,1582.3,1582.1,12.64142]
[1674056433091,6.34343538,1582.3,1582.0,0.066]
[1674056433305,0.76792515,1582.2,1581.9,12.64276]
[1674056433560,0.76792515,1582.2,1581.9,6.3213]
[1674056434240,7.08830515,1582.2,1581.8,12.70937]
[1674056434407,0.86492515,1582.2,1581.9,6.32147]
[1674056434630,0.76792515,1582.2,1581.9,6.32147]
[1674056435087,0.76792515,1582.2,1581.8,12.70937]
[1674056435298,20.38780766,1582.2,1581.7,0.066]
[1674056435518,1.275,1582.1,1581.5,0.066]
[1674056435776,40.56680766,1582.2,1581.5,6.32291]
[1674056435935,40.56680766,1582.2,1581.5,12.64596]
[1674056436139,32.98140766,1582.2,1581.5,20.24307]
[1674056436565,39.30180766,1582.2,1581.5,20.24307]
[1674056437000,39.30180766,1582.2,1581.6,13.64496]
[1674056437234,39.30180766,1582.2,1581.6,12.64496]
[1674056437444,40.29010143,1582.2,1581.5,1.34]
[1674056437611,40.29010143,1582.2,1581.4,20.30086]
[1674056437612,3.40404456,1582.1,1581.4,20.30086]
[1674056437840,21.19536921,1582.0,1581.3,6.38986]
[1674056438073,21.19536921,1582.0,1581.4,6.32348]
[1674056438074,20.19423251,1582.0,1581.4,6.32348]
[1674056438452,20.19423251,1582.0,1581.3,6.38986]
[1674056438661,21.18252628,1582.0,1581.3,6.32386]
[1674056438872,21.18252628,1582.0,1581.3,7.32386]
[1674056439135,0.76895446,1581.9,1581.3,6.32386]
[1674056439327,6.32199,1581.8,1581.3,12.64777]
[1674056439538,6.41899,1581.8,1581.3,6.32386]
[1674056439752,19.72175251,1581.8,1581.2,0.066]
[1674056439958,19.72175251,1581.8,1581.1,7.81152031]
[1674056440715,1.75715067,1581.7,1581.1,1.48713031]
[1674056440932,18.96898,1581.6,1581.1,0.21213031]
[1674056441083,2.23155067,1581.5,1581.1,0.21213031]
[1674056441288,18.97069,1581.4,1581.1,0.21213031]
[1674056441617,6.42051,1581.4,1581.1,0.21213031]
[1674056442545,0.097,1581.4,1581.1,0.21213031]
[1674056442757,6.8946,1581.5,1581.1,0.21213031]
[1674056443228,14.0074,1581.5,1581.1,0.21213031]
[1674056444137,12.7434,1581.5,1581.1,0.21213031]
[1674056444759,0.097,1581.5,1581.1,6.53679031]
[1674056445001,0.5714,1581.6,1581.1,7.17353204]
[1674056445227,0.75586251,1581.7,1581.1,13.49824204]
[1674056445388,6.32277,1581.6,1581.1,7.17353204]
[1674056445607,13.40140251,1581.6,1581.1,0.84887204]
[1674056445834,1.0,1581.5,1581.1,0.84887204]
[1674056446079,13.64668,1581.5,1581.1,0.21213031]
[1674056446238,1.275,1581.4,1581.1,0.21213031]
[1674056446620,6.42019,1581.5,1581.1,0.21213031]
[1674056446942,6.89459,1581.5,1581.1,0.21213031]
[1674056447227,6.89459,1581.5,1581.1,6.53682031]
[1674056447228,0.5714,1581.5,1581.1,6.53682031]
[1674056447449,0.5714,1581.6,1581.1,12.86153031]
[1674056447609,9.90391824,1581.7,1581.1,12.86153031]
[1674056447610,1.8464,1581.7,1581.1,12.86153031]
[1674056447963,0.4744,1581.7,1581.1,13.49827204]
[1674056448177,20.75636251,1581.8,1581.1,14.76027204]
[1674056448861,20.75636251,1581.8,1581.2,1.0]
[1674056449232,20.0975,1581.8,1581.3,19.60757173]
[1674056449397,0.097,1581.8,1581.3,19.60757173]
[1674056449593,3.54938162,1581.9,1581.3,19.60757173]
[1674056449594,1.42781697,1581.9,1581.3,19.60757173]
[1674056449798,2.42781697,1581.9,1581.3,19.60757173]
[1674056450014,0.65886251,1581.8,1581.3,19.60757173]
[1674056450267,5.42737668,1581.9,1581.3,19.60757173]
[1674056450484,1.75699089,1581.8,1581.4,1.0]
[1674056450800,2.51311074,1581.9,1581.5,18.96877]
[1674056450952,2.41611074,1581.9,1581.5,17.79745513]
[1674056451167,1.42781697,1581.9,1581.5,17.79745513]
[1674056451421,0.76895446,1581.9,1581.5,18.43419686]
[1674056451973,0.76895446,1581.9,1581.7,18.96693]
[1674056452138,0.76895446,1581.9,1581.7,18.71693]
[1674056452785,0.76895446,1581.9,1581.8,1.0]
[1674056452953,0.76895446,1581.9,1581.8,14.91682]
[1674056453174,0.76895446,1581.9,1581.8,15.55356173]
[1674056454016,4.46e-06,1581.9,1581.8,14.55356173]
[1674056454226,4.46e-06,1581.9,1581.8,15.82556173]
[1674056457423,4.46e-06,1581.9,1581.8,15.57556173]
[1674056458917,4.46e-06,1581.9,1581.8,14.55256173]
[1674056459129,4.46e-06,1581.9,1581.8,13.91582]
[1674056459823,4.46e-06,1581.9,1581.8,20.23773]
[1674056460389,4.46e-06,1581.9,1581.8,20.87447173]
[1674056461917,4.46e-06,1581.9,1581.8,20.62447173]
[1674056465956,4.46e-06,1581.9,1581.8,19.35247173]
[1674056466340,4.46e-06,1581.9,1581.8,18.71573]
[1674056468215,4.46e-06,1581.9,1581.8,20.62447173]
[1674056469227,4.46e-06,1581.9,1581.8,18.05701271]
[1674056473263,4.46e-06,1581.9,1581.8,19.33001271]
[1674056473954,4.46e-06,1581.9,1581.8,18.05701271]
[1674056477710,4.46e-06,1581.9,1581.8,19.96775444]
[1674056477918,4.46e-06,1581.9,1581.8,26.28966444]
[1674056478462,4.46e-06,1581.9,1581.8,25.65292271]
[1674056479044,4.46e-06,1581.9,1581.8,24.37892271]
[1674056479252,4.46e-06,1581.9,1581.8,18.05701271]
[1674056479565,1.10518606,1581.7,1581.6,6.32257]
[1674056479701,1.10518606,1581.7,1581.5,6.3868]
[1674056480055,1.10518606,1581.7,1581.5,6.3228]
[1674056480201,1.10518606,1581.7,1581.5,12.64591]
[1674056481356,1.10518606,1581.7,1581.6,12.64542]
[1674056482252,1.10518606,1581.7,1581.6,6.32271]
[1674056483279,1.10518606,1581.7,1581.5,0.066]
[1674056483484,1.10518606,1581.7,1581.4,6.32349]
[1674056483676,1.57958606,1581.7,1581.4,6.32349]
[1674056483874,1.10518606,1581.7,1581.3,12.71362]
[1674056484086,1.10518606,1581.7,1581.3,12.64762]
[1674056484775,1.10518606,1581.7,1581.2,6.39008]
[1674056484929,0.4744,1581.6,1581.1,6.60245031]
[1674056485134,0.4744,1581.6,1581.1,6.53645031]
[1674056485349,0.4744,1581.6,1581.1,12.86116031]
[1674056487065,1.10518606,1581.7,1581.1,14.12816031]
[1674056487445,1.10518606,1581.7,1581.2,1.0]
[1674056487660,1.10518606,1581.7,1581.3,18.97113]
[1674056488131,1.10518606,1581.7,1581.3,20.24013]
[1674056488604,1.10518606,1581.7,1581.3,12.64742]
[1674056489450,1.0,1581.6,1581.3,6.32371]
[1674056489656,2.267,1581.6,1581.2,0.066]
[1674056489904,1.7494,1581.5,1581.1,6.53655031]
[1674056490133,7.59811,1581.5,1581.1,0.21213031]
[1674056490288,1.4745,1581.4,1581.1,0.21213031]
[1674056490501,1.4775,1581.4,1581.1,0.21213031]
[1674056490756,1.275,1581.3,1581.1,0.21213031]
[1674056491236,7.59893,1581.3,1581.1,0.21213031]
[1674056491452,7.69593,1581.3,1581.1,0.21213031]
[1674056492412,1.0,1581.2,1581.1,0.21213031]
[1674056492593,2.7415,1581.2,1581.1,0.21213031]
[1674056492805,2.267,1581.2,1581.1,0.21213031]
[1674056493594,14.91562,1581.2,1581.1,0.21213031]
[1674056493764,15.01262,1581.2,1581.1,0.21213031]
[1674056495570,15.48712,1581.2,1581.1,0.21213031]
[1674056495780,6.32551,1580.9,1580.8,0.21793008]
[1674056495971,6.42251,1580.9,1580.8,0.16793008]
[1674056496906,0.097,1580.9,1580.8,0.16793008]
[1674056497124,0.20727421,1581.0,1580.8,12.81975008]
[1674056497693,0.20727421,1581.0,1580.8,19.14566008]
[1674056499482,0.20727421,1581.0,1580.9,2.262]
[1674056499687,0.20727421,1581.0,1580.9,21.23853]
[1674056500011,0.20727421,1581.0,1580.9,21.87527173]
[1674056501356,18.2476,1581.5,1581.0,1.0]
[1674056501357,0.097,1581.5,1581.0,1.0]
[1674056501574,31.09518606,1581.7,1581.2,1.262]
[1674056501575,0.097,1581.7,1581.2,1.262]
[1674056501735,19.928,1581.8,1581.3,18.97113]
[1674056501736,19.5507,1581.8,1581.3,18.97113]
[1674056502426,1.0,1581.7,1581.3,18.97113]
[1674056502595,19.5507,1581.8,1581.3,18.97113]
[1674056503848,19.5507,1581.8,1581.5,18.96909]
[1674056504060,0.097,1581.8,1581.5,18.96909]
[1674056504306,1.00000446,1581.9,1581.5,18.96909]
[1674056504913,1.00000446,1581.9,1581.4,12.71272]
[1674056504914,9.25441697,1581.9,1581.4,12.71272]
[1674056505098,9.35141697,1581.9,1581.4,12.64672]
[1674056505488,1.275,1581.8,1581.4,12.64672]
[1674056506466,0.09700446,1581.9,1581.4,18.97023]
[1674056506729,4.46e-06,1581.9,1581.4,18.97023]
[1674056507534,4.46e-06,1581.9,1581.4,20.24223]
[1674056507975,4.46e-06,1581.9,1581.4,18.97023]
[1674056510518,6.32154446,1581.9,1581.4,18.31134803]
[1674056510668,6.41654446,1581.9,1581.4,18.31134803]
[1674056510884,0.09700446,1581.9,1581.4,18.31134803]
[1674056511094,4.46e-06,1581.9,1581.4,18.31134803]
[1674056512418,6.32152446,1581.9,1581.4,11.98783803]
[1674056512567,1.264,1581.8,1581.4,18.31134803]
[1674056512989,2.264,1581.8,1581.4,18.31134803]
[1674056513442,1.264,1581.8,1581.4,18.31134803]
[1674056513661,0.09700446,1581.9,1581.4,18.31134803]
[1674056513846,4.46e-06,1581.9,1581.4,18.31134803]
[1674056517099,0.65886697,1581.9,1581.4,18.31134803]
[1674056517397,1.75696259,1581.9,1581.4,18.31134803]
[1674056517563,1.0,1581.8,1581.4,18.31134803]
[1674056517771,0.65886697,1581.9,1581.4,18.31134803]
[1674056517950,1.75696469,1581.9,1581.4,18.31134803]
[1674056518394,4.46e-06,1581.9,1581.4,18.31134803]
[1674056518944,1.75695008,1581.9,1581.4,18.31134803]
[1674056519757,1.75695008,1581.9,1581.4,18.26134803]
[1674056520146,0.65886697,1581.9,1581.4,18.26134803]
[1674056520358,4.46e-06,1581.9,1581.4,18.26134803]
[1674056521086,1.65886697,1581.9,1581.4,18.26134803]
[1674056521297,0.65886697,1581.9,1581.4,18.26134803]
[1674056521543,1.75691496,1581.9,1581.4,18.26134803]
[1674056521755,4.46e-06,1581.9,1581.4,18.26134803]
[1674056522416,4.46e-06,1581.9,1581.6,1.275]
[1674056522718,4.46e-06,1581.9,1581.7,25.28924]
[1674056526931,4.46e-06,1581.9,1581.7,25.92598173]
[1674056527449,4.46e-06,1581.9,1581.8,1.273]
[1674056527658,4.46e-06,1581.9,1581.8,20.23873]
[1674056527829,4.46e-06,1581.9,1581.8,20.87547173]
[1674056529143,4.46e-06,1581.9,1581.8,18.96573]
[1674056531193,4.46e-06,1581.9,1581.8,19.60247173]
[1674056533104,4.46e-06,1581.9,1581.8,18.96573]
[1674056535380,4.46e-06,1581.9,1581.7,12.71041]
[1674056535696,4.46e-06,1581.9,1581.7,12.64421]
[1674056535968,0.47730446,1581.9,1581.7,12.64421]
[1674056536132,4.46e-06,1581.9,1581.7,12.64421]
[1674056536353,4.46e-06,1581.9,1581.7,6.3221]
[1674056537204,4.46e-06,1581.9,1581.6,12.71098]
[1674056537414,1.275,1581.8,1581.6,6.32249]
[1674056537601,1.275,1581.8,1581.5,6.38886]
[1674056537810,1.0,1581.7,1581.5,6.32286]
[1674056538055,1.0,1581.7,1581.4,6.38925]
[1674056538282,1.275,1581.8,1581.4,6.32325]
[1674056538431,1.7493,1581.8,1581.4,12.64676]
[1674056538908,1.275,1581.8,1581.4,12.64676]
[1674056540165,4.46e-06,1581.9,1581.4,12.64676]
[1674056540483,1.75693431,1581.9,1581.4,12.64676]
[1674056540632,1.267,1581.8,1581.4,6.32325]
[1674056540843,0.99678886,1581.7,1581.4,6.32325]
[1674056541217,2.27178886,1581.7,1581.4,6.32325]
[1674056541582,2.27178886,1581.7,1581.0,15.59522]
[1674056541583,1.10543808,1581.3,1581.0,6.32492]
[1674056542137,1.10543808,1581.3,1581.0,18.97514]
[1674056542490,1.10543808,1581.3,1580.9,0.066]
[1674056542491,1.268,1581.2,1580.9,0.066]
[1674056542675,7.59235,1581.2,1580.8,6.49360008]
[1674056542896,7.68935,1581.2,1580.8,6.49360008]
[1674056543053,0.097,1581.2,1580.8,6.49360008]
[1674056543267,1.20243808,1581.3,1580.8,19.14542008]
[1674056543522,1.10543808,1581.3,1580.8,12.81951008]
[1674056543732,1.10543808,1581.3,1580.8,0.16793008]
[1674056543733,1.0,1581.2,1580.8,0.16793008]
[1674056544108,13.64879,1581.2,1580.8,0.16793008]
[1674056544322,1.264,1581.0,1580.8,0.16793008]
[1674056544564,7.58918,1581.0,1580.8,0.16793008]
[1674056544775,2.262,1580.9,1580.8,0.16793008]
[1674056545160,9.06211,1580.9,1580.8,0.16793008]
[1674056545410,19.32348366,1580.9,1580.8,0.16793008]
[1674056545620,15.48462,1580.9,1580.8,0.16793008]
[1674056546316,2.8336,1580.9,1580.8,0.16793008]
[1674056546528,1.7366,1580.9,1580.8,0.16793008]
[1674056546802,2.7366,1580.9,1580.8,0.16793008]
[1674056547199,9.06211,1580.9,1580.8,0.16793008]
[1674056547557,9.15911,1580.9,1580.8,0.16793008]
[1674056548332,15.48462,1580.9,1580.8,0.16793008]
[1674056549216,14.48462,1580.9,1580.8,0.16793008]
[1674056549378,0.5716,1580.9,1580.8,0.16793008]
[1674056549587,1.293,1580.9,1580.8,0.16793008]
[1674056550050,22.202,1581.1,1580.8,0.16793008]
[1674056550577,1.0,1581.0,1580.8,6.32581]
[1674056550910,1.0,1581.0,1580.7,0.066]
[1674056551088,1.275,1580.9,1580.6,0.2074498]
[1674056551255,1.275,1580.8,1580.6,0.2074498]
[1674056551464,1.268,1580.9,1580.6,6.5341598]
[1674056551905,1.268,1580.9,1580.6,12.8608698]
[1674056552518,2.8355,1581.1,1580.6,19.1875798]
[1674056552729,1.264,1581.1,1580.6,19.1875798]
[1674056553593,2.264,1581.1,1580.6,19.1875798]
[1674056554000,1.264,1581.1,1580.6,19.1875798]
[1674056554245,2.264,1581.1,1580.6,19.1875798]
[1674056554956,1.264,1581.1,1580.6,19.1875798]
[1674056555581,21.6244,1581.2,1580.6,21.09632153]
[1674056555960,21.6244,1581.2,1580.6,19.82432153]
[1674056556265,21.6244,1581.2,1580.6,19.1875798]
[1674056556266,34.27306,1581.2,1580.6,19.1875798]
[1674056556652,1.0,1581.1,1580.6,19.1875798]
[1674056556854,2.27,1581.1,1580.6,19.1875798]
[1674056557267,1.27,1581.1,1580.6,19.1875798]
[1674056557511,29.21373,1581.2,1580.6,19.1875798]
[1674056557832,21.6244,1581.2,1580.6,19.1875798]
[1674056558632,22.8884,1581.2,1580.6,19.1875798]
[1674056560365,0.097,1581.2,1580.6,21.09132153]
[1674056560581,1.10543808,1581.3,1580.7,1.274]
[1674056560732,1.10543808,1581.3,1580.8,25.30236]
[1674056560942,1.10543808,1581.3,1580.8,25.93910173]
[1674056561584,1.10543808,1581.3,1581.0,25.30012]
[1674056567119,1.10543808,1581.3,1581.1,1.0]
[1674056567272,1.10543808,1581.3,1581.2,25.29724]
[1674056569610,1.10543808,1581.3,1581.2,6.32431]
[1674056569799,1.10543808,1581.3,1581.2,5.15274639]
[1674056570222,1.10543808,1581.3,1581.2,11.47705639]
[1674056570749,1.10543808,1581.3,1581.2,5.15274639]
[1674056570967,2.37943808,1581.3,1581.1,0.72560734]
[1674056571178,2.37943808,1581.3,1581.0,6.39107]
[1674056571507,2.37943808,1581.3,1581.0,12.65018]
[1674056571716,1.10543808,1581.3,1581.0,12.65018]
[1674056571928,2.37643808,1581.3,1581.0,6.32507]
[1674056572999,2.37643808,1581.3,1581.0,6.22507]
[1674056573383,2.275,1581.2,1580.9,6.39122]
[1674056573641,1.27,1581.1,1580.8,6.39173]
[1674056573863,1.27,1581.1,1580.7,12.71814]
[1674056574179,1.27,1581.1,1580.7,12.65214]
[1674056574538,1.264,1581.0,1580.7,12.65214]
[1674056575013,1.264,1581.0,1580.7,6.32607]
[1674056575489,1.264,1581.0,1580.6,0.2734498]
[1674056575699,1.275,1580.9,1580.6,0.2074498]
[1674056575962,2.275,1580.9,1580.6,0.2074498]
[1674056576448,1.275,1580.7,1580.6,0.2074498]
[1674056576640,1.275,1580.7,1580.6,0.1574498]
[1674056577532,7.60131,1580.7,1580.6,0.1574498]
[1674056577857,7.69831,1580.7,1580.6,0.1574498]
[1674056578219,6.42331,1580.7,1580.6,0.1574498]
[1674056579274,1.39,1580.7,1580.6,0.1574498]
[1674056579525,0.097,1580.8,1580.6,0.1574498]
[1674056579686,2.40446251,1580.9,1580.6,12.8108698]
[1674056579687,0.4746,1580.9,1580.6,12.8108698]
[1674056579899,1.92286251,1581.0,1580.6,19.1375798]
[1674056580403,2.92286251,1581.0,1580.6,12.8108698]
[1674056580571,9.24799251,1581.0,1580.6,6.4841598]
[1674056580785,1.275,1580.9,1580.6,0.1574498]
[1674056581026,7.60065,1580.9,1580.6,0.1574498]
[1674056581237,7.69765,1580.9,1580.6,0.1574498]
[1674056581479,6.42265,1580.9,1580.6,0.1574498]
[1674056581877,7.42265,1580.9,1580.6,0.1574498]
[1674056582049,20.73267251,1580.9,1580.6,0.1574498]
[1674056582243,7.60131,1580.7,1580.6,0.1574498]
[1674056582456,7.69831,1580.7,1580.6,0.1574498]
[1674056582664,8.96531,1580.7,1580.6,0.1574498]
[1674056582910,21.61793,1580.7,1580.6,0.1574498]
[1674056583716,23.37568077,1580.7,1580.6,0.0589498]
[1674056583930,1.41089959,1580.5,1580.4,0.0020001]
[1674056584277,10.00300959,1580.5,1580.4,0.0020001]
[1674056584484,10.10000959,1580.5,1580.4,0.0020001]
[1674056585035,22.75422959,1580.5,1580.4,0.0020001]
[1674056585396,25.59303221,1580.5,1580.3,0.0004499]
[1674056585607,25.59303221,1580.5,1580.2,0.22264736]
[1674056585608,1.0,1580.3,1580.2,0.22264736]
[1674056585923,13.65582,1580.3,1580.2,0.04954736]
[1674056586180,13.75282,1580.3,1580.2,0.04954736]
[1674056587500,17.56830346,1580.3,1580.2,0.00054736]
[1674056587724,0.097,1580.3,1580.2,0.00054736]
[1674056587936,0.097,1580.4,1580.2,0.00054736]
[1674056588179,11.40249959,1580.5,1580.1,0.21213031]
[1674056588180,1.0,1580.3,1580.1,0.21213031]
[1674056588391,13.65582,1580.3,1580.1,0.21213031]
[1674056588561,13.75282,1580.3,1580.1,0.21213031]
[1674056588916,13.92462,1580.2,1580.1,3.031e-05]
[1674056589134,14.02162,1580.2,1580.1,3.031e-05]
[1674056589442,15.02162,1580.2,1580.1,3.031e-05]
[1674056589598,15.49642,1580.2,1580.1,3.031e-05]
[1674056589969,1.0,1580.1,1580.0,1e-08]
[1674056590181,1.0,1580.1,1579.8,0.21244031]
[1674056590182,0.00199999,1580.0,1579.8,0.00044031]
[1674056590392,25.79294,1579.9,1579.8,0.00044031]
[1674056590706,25.79294,1579.9,1579.1,0.007]
[1674056590707,1.41694539,1579.2,1579.1,0.007]
[1674056590857,7.74926539,1579.2,1579.1,0.007]